bitfinex/quotes_ETHUSD_20251214
["timestamp","ask_amount","ask_price","bid_price","bid_amount"]
[1765678033215,2.05315402,3125.4,3125.3,22.47816811]
[1765678033421,2.54045402,3125.4,3125.3,12.47816811]
[1765678034052,2.05315402,3125.4,3125.3,12.47816811]
[1765678034341,1.58835402,3125.4,3125.3,34.27906811]
[1765678037228,0.79467701,3125.4,3125.3,34.27906811]
[1765678037428,0.79467701,3125.4,3125.3,34.74336811]
[1765678038236,0.79467701,3125.4,3125.3,4.74336811]
[1765678038564,0.79467701,3125.4,3125.3,34.74336811]
[1765678045434,0.79467701,3125.4,3125.3,4.74336811]
[1765678045639,0.79467701,3125.4,3125.3,34.74336811]
[1765678047541,0.79467701,3125.4,3125.3,44.27906811]
[1765678047766,0.79467701,3125.4,3125.3,34.27906811]
[1765678048362,1.26947701,3125.4,3125.3,34.57484512]
[1765678050973,1.74687701,3125.4,3125.3,17.08584512]
[1765678051550,1.74687701,3125.4,3125.3,14.57484512]
[1765678051551,1.26947701,3125.4,3125.3,14.57484512]
[1765678051883,1.26947701,3125.4,3125.3,34.57484512]
[1765678052379,1.74687701,3125.4,3125.3,34.57484512]
[1765678055980,1.74687701,3125.4,3125.3,39.4889767]
[1765678060105,1.74687701,3125.4,3125.3,27.3939767]
[1765678063925,1.74687701,3125.4,3125.3,27.39418981]
[1765678064219,1.26947701,3125.4,3125.3,27.39418981]
[1765678064418,1.74687701,3125.4,3125.3,27.39418981]
[1765678069322,2.43790393,3125.4,3125.3,27.39418981]
[1765678073929,2.43790393,3125.4,3125.3,4.57484512]
[1765678074130,2.76116202,3125.4,3125.3,3.78016811]
[1765678074332,2.76116202,3125.4,3125.1,0.96093633]
[1765678074333,3.0610461,3125.4,3125.1,0.96093633]
[1765678074531,3.0610461,3125.4,3124.9,0.002]
[1765678074532,1.12037793,3125.2,3124.9,0.002]
[1765678074733,0.4727,3125.0,3124.9,0.002]
[1765678075033,1.463611,3125.0,3124.9,0.002]
[1765678075201,1.941011,3125.0,3124.9,0.002]
[1765678077325,1.64112692,3125.0,3124.9,0.002]
[1765678085713,4.84112692,3125.0,3124.9,0.002]
[1765678085911,5.65488016,3125.0,3124.9,0.002]
[1765678087040,6.5181844,3125.0,3124.9,0.002]
[1765678087236,5.65488016,3125.0,3124.9,0.002]
[1765678089147,5.6516844,3125.0,3124.9,0.002]
[1765678092749,9.95556866,3125.0,3124.9,0.002]
[1765678093049,11.77663572,3125.0,3124.9,0.002]
[1765678093664,12.06657876,3125.0,3124.9,0.002]
[1765678093960,10.91684677,3125.0,3124.9,0.002]
[1765678094133,6.61296251,3125.0,3124.9,0.002]
[1765678094452,7.75856518,3125.0,3124.9,0.002]
[1765678094825,14.23256518,3125.0,3124.9,0.002]
[1765678101548,14.23356518,3125.0,3124.9,0.002]
[1765678102351,13.08796251,3125.0,3124.9,0.002]
[1765678104942,14.81262638,3125.0,3124.9,0.002]
[1765678108172,13.85134827,3125.0,3124.9,0.002]
[1765678113179,12.1266844,3125.0,3124.9,0.002]
[1765678115275,15.3266844,3125.0,3124.3,0.002]
[1765678115480,0.86233441,3124.4,3124.3,0.002]
[1765678115680,2.35287923,3124.4,3124.3,0.002]
[1765678115979,2.35287923,3124.4,3124.3,0.4603]
[1765678120892,2.35287923,3124.4,3124.3,0.9398]
[1765678121283,1.49054482,3124.4,3124.3,0.9398]
[1765678122475,0.98654482,3124.4,3124.3,0.4603]
[1765678122688,0.98654482,3124.4,3124.3,0.9398]
[1765678123572,0.98654482,3124.4,3124.3,0.4603]
[1765678126400,1.47454482,3124.4,3124.3,0.002]
[1765678126610,1.78737722,3124.4,3124.3,0.002]
[1765678126902,2.25377722,3124.4,3124.3,0.002]
[1765678127277,1.78737722,3124.4,3124.3,0.002]
[1765678130507,5.45439173,3124.4,3124.3,0.002]
[1765678130676,2.25377722,3124.4,3124.3,0.002]
[1765678131607,6.60417094,3124.4,3124.3,0.002]
[1765678131804,3.40355643,3124.4,3124.3,0.002]
[1765678135417,3.40451718,3124.4,3124.3,0.002]
[1765678136021,9.87851718,3124.4,3124.3,0.002]
[1765678138830,9.41211718,3124.4,3124.3,0.002]
[1765678143450,9.87741718,3124.4,3124.3,0.002]
[1765678146648,9.41211718,3124.4,3124.3,0.002]
[1765678149755,9.41497696,3124.4,3124.3,0.002]
[1765678150552,8.92697696,3124.4,3124.3,0.4618]
[1765678150757,9.43097696,3124.4,3124.3,0.4618]
[1765678156240,9.90607696,3124.4,3124.3,0.002]
[1765678158049,13.57199147,3124.4,3124.3,0.002]
[1765678158254,12.42221226,3124.4,3124.3,0.002]
[1765678159872,8.75629775,3124.4,3124.3,0.002]
[1765678161180,9.90749139,3124.4,3124.3,0.002]
[1765678161869,9.90760512,3124.4,3124.3,0.002]
[1765678163380,9.60781698,3124.4,3124.3,0.002]
[1765678166079,9.907594,3124.4,3124.3,0.002]
[1765678166490,9.60781698,3124.4,3124.3,0.002]
[1765678168195,9.90759369,3124.4,3124.3,0.002]
[1765678169196,9.60781698,3124.4,3124.3,0.002]
[1765678169362,10.86902691,3124.4,3124.3,0.002]
[1765678169769,10.56925221,3124.4,3124.3,0.002]
[1765678170371,10.86903254,3124.4,3124.3,0.002]
[1765678171624,10.39393254,3124.4,3124.3,0.4669]
[1765678171839,10.39393254,3124.4,3124.3,0.002]
[1765678172532,10.39393254,3124.4,3124.3,0.4669]
[1765678173133,10.39393254,3124.4,3124.3,0.002]
[1765678173433,10.39387589,3124.4,3124.3,0.002]
[1765678173733,10.39387589,3124.4,3124.3,0.4669]
[1765678173906,9.11960826,3124.4,3124.3,0.9312]
[1765678174111,9.11960826,3124.4,3124.3,0.4669]
[1765678188963,9.11960826,3124.4,3124.3,0.9312]
[1765678189637,9.11960826,3124.4,3124.3,0.4669]
[1765678192667,9.11960826,3124.4,3124.3,0.9312]
[1765678194469,8.61560826,3124.4,3124.3,0.9312]
[1765678194672,9.11960826,3124.4,3124.3,0.9312]
[1765678194970,9.11960826,3124.4,3124.3,0.4669]
[1765678195272,7.96841462,3124.4,3124.3,0.4669]
[1765678195452,9.11960826,3124.4,3124.3,0.4669]
[1765678197446,7.96841462,3124.4,3124.3,0.4669]
[1765678197646,8.83180876,3124.4,3124.3,5.24905605]
[1765678197845,8.83180876,3124.4,3124.3,6.21033416]
[1765678198073,8.83180876,3124.4,3124.3,6.20915571]
[1765678198754,8.78180876,3124.4,3124.3,6.20915571]
[1765678199164,7.41441462,3124.4,3124.3,9.40987267]
[1765678200575,0.69063429,3124.4,3124.3,9.40987267]
[1765678202173,0.86339414,3124.8,3124.3,12.61058963]
[1765678202379,7.79239414,3124.9,3124.7,4.7909776]
[1765678202576,0.4998,3124.4,3124.3,0.002]
[1765678202773,2.49195291,3124.4,3124.3,0.002]
[1765678203072,2.82738815,3124.4,3124.3,0.002]
[1765678203279,3.68978763,3124.4,3124.3,0.002]
[1765678209972,2.69128763,3124.4,3124.3,0.4897]
[1765678210281,8.77985239,3124.4,3124.3,0.4897]
[1765678212268,7.91745291,3124.4,3124.3,0.4897]
[1765678217084,7.41345291,3124.4,3124.3,0.4897]
[1765678217290,7.91745291,3124.4,3124.3,0.4897]
[1765678219272,7.91745291,3124.4,3124.3,0.002]
[1765678220394,7.91845291,3124.4,3124.3,0.002]
[1765678223699,8.78038189,3124.4,3124.3,0.002]
[1765678224707,8.78038189,3124.4,3124.3,0.4897]
[1765678224872,7.91845291,3124.4,3124.3,0.4897]
[1765678225782,7.91845291,3124.4,3124.3,0.9828]
[1765678225987,7.91845291,3124.4,3124.3,0.4897]
[1765678226176,8.78020377,3124.4,3124.3,0.4897]
[1765678226502,7.91845291,3124.4,3124.3,0.4897]
[1765678226876,8.85665291,3124.4,3124.3,0.002]
[1765678229710,8.39395291,3124.4,3124.3,0.002]
[1765678230019,7.91845291,3124.4,3124.3,0.4707]
[1765678230190,7.91845291,3124.4,3124.3,4.16451696]
[1765678230811,7.91845291,3124.4,3124.3,0.4707]
[1765678231108,7.61898099,3124.4,3124.3,0.4707]
[1765678231414,7.61898099,3124.4,3124.3,0.002]
[1765678232119,7.91829684,3124.4,3124.3,0.002]
[1765678232312,9.06949048,3124.4,3124.3,0.002]
[1765678232522,9.24567463,3124.4,3124.3,0.002]
[1765678233323,9.70837463,3124.4,3124.3,0.002]
[1765678234130,9.7085186,3124.4,3124.3,0.002]
[1765678234516,9.2458186,3124.4,3124.3,0.002]
[1765678235316,9.7085186,3124.4,3124.3,0.002]
[1765678236235,10.00807668,3124.4,3124.3,0.002]
[1765678242794,10.00804853,3124.4,3124.3,0.002]
[1765678243020,9.54534853,3124.4,3124.3,0.002]
[1765678243622,9.06984853,3124.4,3124.3,0.002]
[1765678243997,9.06984853,3124.4,3124.3,0.4707]
[1765678244626,11.13377026,3124.4,3124.3,0.002]
[1765678244824,9.98257662,3124.4,3124.3,0.002]
[1765678245409,11.13265875,3124.4,3124.3,0.002]
[1765678246690,8.78130754,3124.4,3124.3,0.9638]
[1765678246802,7.41465489,3124.4,3124.3,0.9638]
[1765678248411,7.41465489,3124.4,3124.3,4.16451696]
[1765678251116,0.99065489,3124.4,3124.3,4.16451696]
[1765678253927,0.69112496,3124.4,3124.3,4.16451696]
[1765678263862,0.69021561,3124.4,3124.3,4.16451696]
[1765678264379,0.001,3124.4,3124.3,4.16451696]
[1765678267047,0.69022679,3124.4,3124.3,3.67141696]
[1765678267669,0.69022679,3124.4,3124.3,4.13971696]
[1765678268970,0.69022679,3124.4,3124.3,9.05698795]
[1765678294719,0.001,3124.4,3124.3,9.05698795]
[1765678295029,0.69126151,3124.4,3124.3,8.58868795]
[1765678295207,1.96244138,3124.4,3124.3,8.11998795]
[1765678295835,1.48194138,3124.4,3124.3,8.11998795]
[1765678296338,0.99084138,3124.4,3124.3,8.57188795]
[1765678297146,0.99084138,3124.4,3124.3,9.02198795]
[1765678297340,0.69126151,3124.4,3124.3,9.02198795]
[1765678299441,0.69126151,3124.4,3124.3,9.88481484]
[1765678300426,0.69126151,3124.4,3124.3,39.88481484]
[1765678303920,0.69126151,3124.4,3124.3,39.88394562]
[1765678306145,0.69126151,3124.4,3124.3,39.88402294]
[1765678309633,0.001,3124.4,3124.3,40.01439823]
[1765678309949,0.001,3124.4,3124.3,40.46449823]
[1765678315150,0.001,3124.4,3124.3,40.01439823]
[1765678315334,0.001,3124.4,3124.3,40.46449823]
[1765678316148,0.001,3124.4,3124.3,45.78648132]
[1765678316354,0.001,3124.4,3124.3,40.87000223]
[1765678321765,0.001,3124.4,3124.3,45.78648132]
[1765678323235,0.001,3124.4,3124.3,15.78648132]
[1765678323441,0.001,3124.4,3124.3,45.78648132]
[1765678328865,0.001,3124.9,3124.3,55.3886322]
[1765678329053,0.001,3124.9,3124.8,40.89383347]
[1765678329460,0.001,3124.9,3124.8,41.36053347]
[1765678330567,0.001,3124.9,3124.8,44.56073828]
[1765678331680,0.001,3124.9,3124.8,14.56073828]
[1765678331978,0.001,3124.9,3124.8,44.56073828]
[1765678335568,0.4946,3124.9,3124.8,44.08033828]
[1765678335776,0.4946,3124.9,3124.8,14.08033828]
[1765678335975,0.4946,3124.9,3124.8,44.08033828]
[1765678336785,0.4946,3124.9,3124.8,14.08033828]
[1765678336985,0.4946,3124.9,3124.8,44.08033828]
[1765678337657,0.9613,3124.9,3124.8,44.08033828]
[1765678338585,0.4946,3124.9,3124.8,44.08033828]
[1765678339078,0.4946,3124.9,3124.8,44.0770299]
[1765678341487,0.001,3124.9,3124.8,44.5574299]
[1765678342386,0.001,3124.9,3124.8,44.0770299]
[1765678343167,0.001,3124.9,3124.8,44.5574299]
[1765678343371,0.001,3124.9,3124.8,45.0551299]
[1765678343570,0.001,3124.9,3124.8,44.5574299]
[1765678346591,0.4601,3124.9,3124.8,44.0770299]
[1765678347968,0.4601,3124.9,3124.8,14.0770299]
[1765678348168,0.4601,3124.9,3124.8,44.0770299]
[1765678349379,0.9206,3124.9,3124.8,44.0770299]
[1765678349597,0.4601,3124.9,3124.8,44.0770299]
[1765678350569,0.9206,3124.9,3124.8,44.0770299]
[1765678351096,0.9206,3124.9,3124.8,14.0770299]
[1765678351279,0.9206,3124.9,3124.8,44.0770299]
[1765678351478,0.4601,3124.9,3124.8,44.0770299]
[1765678352996,0.001,3124.9,3124.8,44.5524299]
[1765678355196,0.001,3124.9,3124.8,45.0459299]
[1765678356990,0.001,3124.9,3124.8,44.5524299]
[1765678364886,0.001,3124.9,3124.8,45.0459299]
[1765678366408,0.001,3124.9,3124.8,15.0459299]
[1765678366607,0.001,3124.9,3124.8,45.0459299]
[1765678367190,0.001,3124.9,3124.8,45.4514339]
[1765678367915,0.001,3124.9,3124.8,44.95638714]
[1765678370519,0.001,3124.9,3124.8,14.95638714]
[1765678370825,0.001,3124.9,3124.8,44.95638714]
[1765678374122,0.001,3124.9,3124.8,44.9564501]
[1765678377336,0.9654,3124.9,3124.8,44.4810501]
[1765678377734,0.9654,3124.9,3124.8,14.4810501]
[1765678377938,0.9654,3124.9,3124.8,44.4810501]
[1765678379742,0.4792,3124.9,3124.8,44.4810501]
[1765678381821,0.4792,3124.9,3124.8,14.4810501]
[1765678382048,0.4792,3124.9,3124.8,44.4810501]
[1765678382842,0.4792,3124.9,3124.8,14.4810501]
[1765678383039,0.4792,3124.9,3124.8,44.4810501]
[1765678383721,0.001,3124.9,3124.8,44.4810501]
[1765678383918,0.001,3124.9,3124.8,44.9691501]
[1765678388531,0.001,3124.9,3124.8,45.4462501]
[1765678389327,0.001,3124.9,3124.8,44.9691501]
[1765678392535,0.001,3124.9,3124.8,45.4462501]
[1765678400464,0.001,3124.9,3124.8,44.9691501]
[1765678402983,0.001,3124.9,3124.8,44.4810501]
[1765678403288,0.4792,3124.9,3124.8,44.4810501]
[1765678407103,0.001,3124.9,3124.8,44.4810501]
[1765678409270,0.001,3124.9,3124.8,14.48134376]
[1765678409469,0.001,3124.9,3124.8,44.48134376]
[1765678414496,0.001,3124.9,3124.8,14.48134376]
[1765678414698,0.001,3124.9,3124.8,44.48134376]
[1765678420798,0.001,3124.9,3124.8,14.48134376]
[1765678421005,0.001,3124.9,3124.8,44.48134376]
[1765678422899,0.001,3124.9,3124.8,14.48134376]
[1765678423091,0.001,3124.9,3124.8,44.48134376]
[1765678425611,0.001,3124.9,3124.8,44.95404376]
[1765678429915,0.001,3124.9,3124.8,49.8680818]
[1765678430081,0.001,3124.9,3124.8,19.8680818]
[1765678430410,0.001,3124.9,3124.8,49.8680818]
[1765678430911,0.9686,3124.9,3124.8,27.3923801]
[1765678431119,0.9686,3124.9,3124.8,13.28294285]
[1765678431411,0.9686,3124.9,3124.8,12.09741814]
[1765678431577,0.9686,3124.9,3124.8,8.58094285]
[1765678431781,1.6578441,3124.9,3124.8,3.66690481]
[1765678432025,1.82372851,3124.9,3124.8,4.2473801]
[1765678435344,1.13448441,3124.9,3124.8,4.2473801]
[1765678441546,1.13448441,3124.9,3124.8,3.7806801]
[1765678450362,0.4774,3124.9,3124.8,3.7806801]
[1765678450541,0.9595,3124.9,3124.8,3.7806801]
[1765678457539,1.64819887,3124.9,3124.8,3.7806801]
[1765678464988,1.64819887,3124.9,3124.8,9.15216099]
[1765678464989,0.68969887,3124.9,3124.8,9.15216099]
[1765678465285,0.68969887,3124.9,3124.8,10.58325423]
[1765678465862,0.68969887,3124.9,3124.8,10.11305423]
[1765678467468,0.001,3124.9,3124.8,10.11305423]
[1765678468355,0.001,3124.9,3124.8,10.59295423]
[1765678469578,0.001,3124.9,3124.8,10.11305423]
[1765678471089,0.001,3124.9,3124.8,5.19597334]
[1765678473401,0.001,3124.9,3124.8,10.11305423]
[1765678477308,0.001,3124.9,3124.8,5.19597334]
[1765678477807,1.1734,3124.9,3124.8,4.74157334]
[1765678477982,1.8628251,3124.9,3124.8,4.74157334]
[1765678478377,1.6658251,3124.9,3124.8,4.74157334]
[1765678478577,1.1792251,3124.9,3124.8,4.74157334]
[1765678480212,1.1792251,3124.9,3124.8,9.6571617]
[1765678480911,0.6904251,3124.9,3124.8,10.1431617]
[1765678482716,0.6904251,3124.9,3124.8,15.05875006]
[1765678483288,0.6904251,3124.9,3124.8,10.1431617]
[1765678485213,0.6904251,3124.9,3124.8,9.6571617]
[1765678488726,0.6904251,3124.9,3124.8,14.57275006]
[1765678489926,0.6904251,3124.9,3124.8,9.65698185]
[1765678492901,1.6658251,3124.9,3124.8,9.65698185]
[1765678493408,0.6904251,3124.9,3124.8,10.14298185]
[1765678494301,0.6404251,3124.9,3124.8,10.14298185]
[1765678497022,0.6414251,3124.9,3124.8,10.14298185]
[1765678503930,0.6414251,3124.9,3124.8,40.14298185]
[1765678505538,0.6414251,3124.9,3124.8,15.51199036]
[1765678505706,0.001,3124.9,3124.8,45.51199036]
[1765678509335,0.001,3124.9,3124.8,45.05839036]
[1765678509735,1.1581,3124.9,3124.8,9.65698185]
[1765678509951,1.84751191,3124.9,3124.8,9.65698185]
[1765678510258,2.0323631,3124.9,3124.8,4.74157334]
[1765678510457,2.33140063,3124.9,3124.4,0.002]
[1765678510625,0.4987,3124.5,3124.4,0.002]
[1765678510830,1.18811191,3124.5,3124.4,3.20261451]
[1765678511040,1.64771191,3124.5,3124.4,3.20261451]
[1765678511251,0.9583,3124.5,3124.4,3.20261451]
[1765678512060,0.9583,3124.5,3124.4,0.002]
[1765678512228,1.64673143,3124.5,3124.4,0.002]
[1765678512556,0.9583,3124.5,3124.4,0.002]
[1765678513553,1.64648834,3124.5,3124.4,0.002]
[1765678514656,1.81113717,3124.5,3124.4,0.002]
[1765678518843,2.31513717,3124.5,3124.4,0.002]
[1765678519058,1.81113717,3124.5,3124.4,0.002]
[1765678519343,1.64648834,3124.5,3124.4,0.002]
[1765678519567,0.4987,3124.5,3124.4,0.002]
[1765678520578,1.64576435,3124.5,3124.4,0.002]
[1765678521850,1.64562435,3124.5,3124.4,0.002]
[1765678525062,8.06962435,3124.5,3124.4,0.002]
[1765678525263,9.54514347,3124.5,3124.4,0.002]
[1765678529550,12.74565555,3124.5,3124.4,0.002]
[1765678533080,13.60481099,3124.5,3124.4,0.002]
[1765678533279,13.70708153,3124.5,3124.4,0.002]
[1765678537359,15.35514832,3124.5,3124.4,0.002]
[1765678537555,9.54514347,3124.5,3124.4,0.002]
[1765678537755,10.90724117,3124.5,3124.4,0.002]
[1765678538157,10.04914347,3124.5,3124.4,0.002]
[1765678538362,10.04906714,3124.5,3124.4,0.002]
[1765678538584,13.24957922,3124.5,3124.4,0.002]
[1765678540188,14.39364601,3124.5,3124.4,0.002]
[1765678542686,11.19313393,3124.5,3124.4,0.002]
[1765678543286,14.39364601,3124.5,3124.4,0.002]
[1765678545696,13.24957922,3124.5,3124.4,0.002]
[1765678546096,14.21106683,3124.5,3124.4,0.002]
[1765678550212,15.93573565,3124.5,3124.4,0.002]
[1765678553109,15.93608448,3124.5,3124.4,0.002]
[1765678554512,20.64746865,3124.5,3124.4,0.002]
[1765678554810,18.92279983,3124.5,3124.3,0.002]
[1765678555015,4.0357603,3124.4,3124.3,0.002]
[1765678555214,10.4597603,3124.4,3124.3,0.002]
[1765678555398,11.42131263,3124.4,3124.3,0.002]
[1765678556611,15.20240243,3124.4,3124.3,0.002]
[1765678557384,15.10611434,3124.4,3124.3,0.002]
[1765678557587,15.56871434,3124.4,3124.3,0.002]
[1765678558712,15.66500243,3124.4,3124.3,0.002]
[1765678560915,10.83312454,3124.4,3124.3,0.002]
[1765678561117,16.25714484,3124.4,3124.3,0.002]
[1765678561286,14.53773905,3124.4,3124.3,0.002]
[1765678561495,14.98823905,3124.4,3124.3,0.002]
[1765678565033,15.56871434,3124.4,3124.3,0.002]
[1765678565824,20.28009851,3124.4,3124.3,0.002]
[1765678569034,23.48071302,3124.4,3123.6,0.002]
[1765678569229,0.85983912,3123.7,3123.6,0.002]
[1765678569442,2.34955165,3123.7,3123.6,0.002]
[1765678570515,2.34955165,3123.7,3123.6,0.4959]
[1765678571943,2.35006972,3123.7,3123.6,0.4959]
[1765678574718,2.84436972,3123.7,3123.6,0.002]
[1765678575329,2.35006972,3123.7,3123.6,0.002]
[1765678577640,2.63668276,3123.7,3123.6,0.002]
[1765678578626,9.06068276,3123.7,3123.6,0.002]
[1765678580843,13.91542065,3123.7,3123.6,0.002]
[1765678581047,13.24876849,3123.7,3123.6,0.002]
[1765678581554,14.96844674,3123.7,3123.6,0.002]
[1765678582230,13.24876849,3123.7,3123.6,0.002]
[1765678588759,14.96844674,3123.7,3123.6,0.002]
[1765678589664,14.28077356,3123.7,3123.6,0.002]
[1765678589870,14.9686704,3123.7,3123.6,0.002]
[1765678594148,14.96866872,3123.7,3123.6,0.002]
[1765678595967,8.62305872,3123.7,3123.6,0.9247]
[1765678596167,7.91445258,3123.7,3123.6,0.9247]
[1765678602197,9.63413083,3123.7,3123.6,0.9247]
[1765678609409,7.91445258,3123.7,3123.6,0.9247]
[1765678612714,7.91509307,3123.7,3123.6,0.9247]
[1765678613314,9.07238568,3123.7,3123.6,0.9247]
[1765678613822,9.07238568,3123.7,3123.6,0.47]
[1765678615220,9.55608568,3123.7,3123.6,0.002]
[1765678615418,9.07238568,3123.7,3123.6,0.4689]
[1765678616822,9.07238568,3123.7,3123.6,0.002]
[1765678617216,12.27371743,3123.7,3123.6,0.002]
[1765678621526,9.07238568,3123.7,3123.6,0.002]
[1765678622031,9.07238568,3123.7,3123.6,0.4689]
[1765678623399,9.07238568,3123.7,3123.6,0.9301]
[1765678624929,9.07238568,3123.7,3123.6,0.4689]
[1765678625114,7.91509307,3123.7,3123.6,0.9301]
[1765678625430,9.06417217,3123.7,3123.6,0.9301]
[1765678627099,9.06417634,3123.7,3123.6,0.9301]
[1765678629923,9.06417634,3123.7,3123.6,4.13153424]
[1765678631433,7.91509724,3123.7,3123.6,4.13153424]
[1765678631635,7.91509724,3123.7,3123.6,0.9301]
[1765678632140,7.91509724,3123.7,3123.6,4.13153424]
[1765678633005,7.91509724,3123.7,3123.6,0.9301]
[1765678643255,8.36629724,3123.7,3123.6,0.002]
[1765678643556,8.81979724,3123.7,3123.6,0.002]
[1765678643762,7.91509724,3123.7,3123.6,0.002]
[1765678643960,7.91509724,3123.7,3123.6,0.5015]
[1765678645347,9.06417634,3123.7,3123.6,0.5015]
[1765678647546,9.55807634,3123.7,3123.6,0.002]
[1765678648422,9.06417634,3123.7,3123.6,0.002]
[1765678649346,9.06417634,3123.7,3123.6,0.4558]
[1765678649757,9.06417634,3123.7,3123.6,0.9278]
[1765678650634,9.06417634,3123.7,3123.6,0.4558]
[1765678652747,10.02575949,3123.7,3123.6,0.4558]
[1765678654430,9.61552763,3123.7,3123.6,0.4558]
[1765678659533,9.61552763,3123.7,3123.6,0.002]
[1765678660138,10.60652763,3123.7,3123.6,0.002]
[1765678661157,10.10942763,3123.7,3123.6,0.002]
[1765678662064,10.60652763,3123.7,3123.6,0.002]
[1765678664330,10.10942763,3123.7,3123.6,0.002]
[1765678665145,10.60652763,3123.7,3123.6,0.002]
[1765678666758,10.10942763,3123.7,3123.6,0.002]
[1765678667763,9.61552763,3123.7,3123.6,0.002]
[1765678668136,10.10942763,3123.7,3123.6,0.002]
[1765678668449,10.60652763,3123.7,3123.6,0.002]
[1765678675150,10.10942763,3123.7,3123.6,0.002]
[1765678675479,10.58982763,3123.7,3123.6,0.002]
[1765678677080,10.10942763,3123.7,3123.6,0.002]
[1765678677277,10.58982763,3123.7,3123.6,0.002]
[1765678682161,8.87668039,3123.7,3123.6,0.4982]
[1765678682666,9.35698039,3123.7,3123.6,0.002]
[1765678683072,9.83738039,3123.7,3123.6,0.002]
[1765678685987,9.35698039,3123.7,3123.6,0.002]
[1765678686496,8.87668039,3123.7,3123.6,0.002]
[1765678687492,8.18878523,3123.7,3123.6,0.002]
[1765678687687,8.87956645,3123.7,3123.6,0.002]
[1765678689501,9.35986645,3123.7,3123.6,0.002]
[1765678691377,10.85500481,3123.7,3123.6,0.002]
[1765678693706,10.37470481,3123.7,3123.6,0.4982]
[1765678695104,8.87956645,3123.7,3123.6,0.4982]
[1765678708413,10.60354651,3123.7,3123.6,0.4982]
[1765678710110,10.30434443,3123.7,3123.6,0.4982]
[1765678710312,10.604129,3123.7,3123.6,0.4982]
[1765678715616,10.604129,3123.7,3123.6,0.9672]
[1765678717512,10.604129,3123.7,3123.6,0.4982]
[1765678717919,8.88014894,3123.7,3123.6,0.4982]
[1765678724603,9.35314894,3123.7,3123.6,0.002]
[1765678725221,8.39156579,3123.7,3123.6,0.002]
[1765678726513,9.88490021,3123.7,3123.6,0.002]
[1765678726719,10.35450021,3123.7,3123.6,0.002]
[1765678726914,11.3161111,3123.7,3123.6,0.002]
[1765678729420,10.8465111,3123.7,3123.6,0.002]
[1765678733326,10.3735111,3123.7,3123.6,0.002]
[1765678733515,8.88017668,3123.7,3123.6,0.002]
[1765678733825,8.88017668,3123.7,3123.6,0.4658]
[1765678734028,8.88017668,3123.7,3123.6,0.9348]
[1765678734624,8.88017668,3123.7,3123.6,0.4658]
[1765678742134,8.37617668,3123.7,3123.6,4.12803424]
[1765678742345,7.41456579,3123.7,3123.6,4.12803424]
[1765678742835,0.86326656,3124.1,3123.6,34.70850953]
[1765678743133,0.001,3124.3,3124.2,0.58047529]
[1765678743324,0.001,3124.3,3124.2,31.74507529]
[1765678743639,0.001,3124.3,3124.2,33.16699634]
[1765678743828,0.001,3124.3,3124.2,36.36781574]
[1765678750515,0.001,3124.3,3124.2,36.77331974]
[1765678760079,0.001,3124.3,3124.2,6.77331974]
[1765678760273,0.001,3124.3,3124.2,36.77331974]
[1765678761282,0.001,3124.3,3124.2,46.77331974]
[1765678761577,0.001,3124.3,3124.2,36.77331974]
[1765678764051,0.001,3124.3,3124.2,41.68901401]
[1765678767162,0.001,3124.3,3124.2,11.68901401]
[1765678767372,0.001,3124.3,3124.2,41.68901401]
[1765678767686,0.001,3124.3,3124.2,36.77331974]
[1765678767983,0.001,3124.3,3124.2,36.19284445]
[1765678768156,0.001,3124.3,3124.2,36.77331974]
[1765678773900,0.001,3124.3,3124.2,35.81219869]
[1765678780400,0.001,3124.3,3124.2,5.81219869]
[1765678780705,0.001,3124.3,3124.2,35.81219869]
[1765678781606,0.001,3124.3,3124.2,35.30819869]
[1765678781972,0.001,3124.3,3124.2,35.81219869]
[1765678784699,0.001,3124.3,3124.2,35.35139869]
[1765678785200,0.001,3124.3,3124.2,35.18069869]
[1765678786801,0.001,3124.3,3124.2,34.27119469]
[1765678787101,0.001,3124.3,3124.2,34.77519469]
[1765678791915,0.001,3124.3,3124.2,39.6922547]
[1765678793686,0.001,3124.3,3124.2,40.1799547]
[1765678794919,0.001,3124.3,3124.2,40.5854587]
[1765678795714,0.001,3124.3,3124.2,40.7770587]
[1765678799404,0.001,3124.3,3124.2,40.77653959]
[1765678801127,0.001,3124.3,3124.2,40.75383959]
[1765678804005,0.001,3124.3,3124.2,10.75383959]
[1765678804211,0.001,3124.3,3124.2,40.75383959]
[1765678809137,0.001,3124.3,3124.2,10.75383959]
[1765678809341,0.001,3124.3,3124.2,40.75383959]
[1765678815267,0.001,3124.3,3124.2,10.75383959]
[1765678815573,0.001,3124.3,3124.2,40.75383959]
[1765678818263,0.001,3124.3,3124.2,10.75383959]
[1765678818431,0.001,3124.3,3124.2,40.75383959]
[1765678826581,0.001,3124.3,3124.2,10.75383959]
[1765678826868,0.001,3124.3,3124.2,40.75383959]
[1765678828669,0.001,3124.3,3124.2,10.75383959]
[1765678828968,0.001,3124.3,3124.2,40.75383959]
[1765678830668,0.001,3124.3,3124.2,10.75383959]
[1765678830872,0.001,3124.3,3124.2,40.75383959]
[1765678831043,0.001,3124.3,3124.2,40.28883959]
[1765678832771,0.001,3124.3,3124.2,10.28883959]
[1765678833073,0.001,3124.3,3124.2,40.28883959]
[1765678833773,0.001,3124.3,3124.2,10.28883959]
[1765678833955,0.001,3124.3,3124.2,40.28883959]
[1765678835173,0.001,3124.3,3124.2,40.28874852]
[1765678837172,0.4904,3124.3,3124.2,39.79884852]
[1765678837473,0.9843,3124.3,3124.2,39.79884852]
[1765678839189,0.4904,3124.3,3124.2,39.79884852]
[1765678839775,0.001,3124.3,3124.2,39.79884852]
[1765678840868,0.001,3124.3,3124.2,9.79884852]
[1765678841074,0.001,3124.3,3124.2,39.79884852]
[1765678845179,0.4904,3124.3,3124.2,39.79884852]
[1765678847979,0.4904,3124.3,3124.2,9.79884852]